Cogmind - Beta 16 @@@ ROGUE MODE // 2025.11.20 @ 23:42:01 Player: human Result: Destroyed by G-67 Veteran with Field Laser Performance ------------- Evolutions (6) 3000 Regions Visited (21) 4200 Robots Destroyed (215) 1075 Value Destroyed (13549) 13549 Prototype IDs (32) 640 Alien Tech Used (0) 0 Bonus (11776) 11776 TOTAL SCORE: 34240 Bonus ------- High Alert Combat Kills 2202 Follower Combat Kills 3695 Entered Garrisons 1600 Used RIF Installer 4000 Aligned with FarCom 300 Friendly Fire -21 Cogmind --------- Core Integrity 0/1150 Matter 83/300 Energy 100/100 System Corruption 13% Temperature Cool (21) Movement Core (50) Location -4/Garrison Parts ------- > --- POWER (1) -------- (None) > --- PROPULSION (6) --- (None) > --- UTILITY (9) ------ Relay Coupler [NC] (35) Relay Coupler [Swarmer] (7) Relay Coupler [Sentry] (31) Relay Coupler [Hunter] (12) > --- WEAPON (3) ------- (None) > --- INVENTORY (5) ---- Neutrino Core Huge Storage Unit Relay Coupler [Sentry] (30) Relay Coupler [Hunter] (22) Supersonic Drone Bay (1/1) Peak State ------------ > --- POWER ------------ Light Quantum Reactor > --- PROPULSION ------- Advanced Heavy Treads Biometal Heavy Treads Advanced Heavy Siege Treads > --- UTILITY ---------- Advanced Heat Sink Huge Storage Unit Relay Coupler [NC] Relay Coupler [Swarmer] Relay Coupler [Grunt] Relay Coupler [Sentry] Relay Coupler [Specialist] Relay Coupler [Behemoth] > --- WEAPON ----------- Advanced Plasma Cannon Enhanced Hardcell Cannon Improved Remote Datajack > --- INVENTORY -------- Light Particle Reactor High-capacity Storage Unit Relay Coupler [NC] Relay Coupler [NC] Relay Coupler [NC] Relay Coupler [NC] Relay Coupler [NC] Relay Coupler [Grunt] Relay Coupler [Grunt] Relay Coupler [Grunt] Relay Coupler [Grunt] Relay Coupler [Grunt] Relay Coupler [Specialist] Relay Coupler [Hunter] Relay Coupler [Heavy] Supersonic Drone Bay Gauss Rifle KE Penetrator Enhanced Hardcell Cannon Enhanced Hardcell Cannon Enhanced Hardcell Cannon Improved Remote Datajack Improved Remote Datajack [Rating: 120] Favorites ----------- Power Light Nuclear Core Engine Improved Ion Engine Power Core Light Nuclear Core Reactor Light Antimatter Reactor Propulsion Wheel Treads Improved Treads Leg Flexi-carbon Leg Wheel Wheel Utility Relay Coupler [Hunter] Device Advanced Heat Sink Storage Huge Storage Unit Processor Advanced Salvage Targeting Computer Hackware Relay Coupler [Hunter] Protection Improved Light Armor Plating Weapon Advanced Plasma Cannon Energy Gun Heavy Particle Gun Energy Cannon Advanced Plasma Cannon Ballistic Gun KE Penetrator Ballistic Cannon Enhanced Hardcell Cannon Launcher Improved Grenade Launcher Special Weapon Improved Remote Datajack Impact Weapon Heavy Hammer Special Melee Weapon Improved Datajack Build | -11 -10 -10 -10 -9 -8 -8 -8 -7 -7 -7 -7 -6 -6 -5 -5 -5 -5 -4 -4 -4 -4 ------- Run | Yrd Mat Min Exi Min Mat Sto Gar Fac Gar Fac Gar Fac Gar Fac Gar Fac Gar Fac Gar Fac Gar Slots Evolved 12 | . . . . . 4 . . 2 . . . 2 . 2 . . . 2 . . . Power . | . . . . . . . . . . . . . . . . . . . . . . Propulsion 4 | . . . . . 1 . . . . . . 1 . . . . . 2 . . . Utility 7 | . . . . . 2 . . 2 . . . 1 . 2 . . . . . . . Weapon 1 | . . . . . 1 . . . . . . . . . . . . . . . . Parts Attached 224 | 6 4 4 . 2 27 15 20 8 19 15 5 4 7 . 25 1 15 10 20 17 . Power 19 | 1 1 . . . 1 2 1 . 3 1 . 1 . . 2 . 2 1 1 2 . Engine 6 | 1 1 . . . . 1 . . 2 1 . . . . . . . . . . . Core 8 | . . . . . 1 1 1 . 1 . . . . . 2 . . . . 2 . Reactor 5 | . . . . . . . . . . . . 1 . . . . 2 1 1 . . Propulsion 51 | 2 . 2 . 2 5 4 4 2 3 7 . 2 . . 9 . 2 . 5 2 . Treads 19 | 2 . . . . . . 1 . 3 1 . . . . 4 . 2 . 4 2 . Leg 11 | . . 2 . . 1 . 3 . . . . . . . 4 . . . 1 . . Wheel 21 | . . . . 2 4 4 . 2 . 6 . 2 . . 1 . . . . . . Hover . | . . . . . . . . . . . . . . . . . . . . . . Flight . | . . . . . . . . . . . . . . . . . . . . . . Utility 100 | 1 2 2 . . 12 2 11 4 9 4 3 1 6 . 8 . 6 9 11 9 . Device 16 | . 1 2 . . 3 2 3 . . . . . . . 2 . . . 2 1 . Storage 5 | 1 1 . . . 1 . . . 1 . . . . . . . . . . 1 . Processor 2 | . . . . . . . . . . . . . 2 . . . . . . . . Hackware 67 | . . . . . 2 . 7 3 6 4 3 1 4 . 6 . 6 9 9 7 . Protection 10 | . . . . . 6 . 1 1 2 . . . . . . . . . . . . Artifact . | . . . . . . . . . . . . . . . . . . . . . . Weapon 54 | 2 1 . . . 9 7 4 2 4 3 2 . 1 . 6 1 5 . 3 4 . Energy Gun 9 | 1 . . . . 3 3 1 . . . . . . . . . . . 1 . . Energy Cannon 8 | . . . . . . 1 . 1 . 1 . . . . 4 . 1 . . . . Ballistic Gun 12 | 1 . . . . 1 2 . 1 2 . 1 . . . 2 . 1 . . 1 . Ballistic Cannon 12 | . . . . . 2 1 1 . 1 . 1 . . . . 1 2 . 1 2 . Launcher 3 | . 1 . . . 2 . . . . . . . . . . . . . . . . Special Weapon 8 | . . . . . . . 1 . 1 2 . . 1 . . . 1 . 1 1 . Impact Weapon 1 | . . . . . 1 . . . . . . . . . . . . . . . . Slashing Weapon . | . . . . . . . . . . . . . . . . . . . . . . Piercing Weapon . | . . . . . . . . . . . . . . . . . . . . . . Special Melee Weapon 1 | . . . . . . . 1 . . . . . . . . . . . . . . Unidentified Prototypes 8 | . . 1 . . . 6 . . . . . . . . . . . . . 1 . Corrupted Parts 1 | . . . . . . . . . . . . . . . 1 . . . . . . System Corruption 2 | . . . . . . . . . . . . . . . 2 . . . . . . Parts Lost 92 | . 1 2 . . 5 10 5 . 11 8 6 3 1 . 10 . 6 3 7 11 3 Power 15 | . 1 . . . 1 2 1 . 2 1 . 1 . . 2 . . 1 1 2 . Propulsion 34 | . . 2 . . 3 4 3 . 3 4 3 . . . 3 . 1 1 3 3 1 Utility 23 | . . . . . 1 3 1 . 3 1 1 . . . 2 . 5 . 2 3 1 Weapon 20 | . . . . . . 1 . . 3 2 2 2 1 . 3 . . 1 1 3 1 Highest Loss Streak 8 | . 1 2 . . 2 5 2 . 5 7 4 3 1 . 3 . 2 2 3 8 2 To Critical Strikes . | . . . . . . . . . . . . . . . . . . . . . . Average Backups 18 | 1 5 9 9 10 15 17 19 19 23 22 18 16 15 22 20 22 22 18 20 19 4 Power 1 | . . 1 2 3 3 3 2 1 . . . . . . . 1 1 . . . . Propulsion . | . . 1 1 1 . 1 . 1 . . 1 . 1 1 . 2 1 . . . . Utility 10 | . 1 3 4 5 7 4 7 7 12 10 9 8 9 15 14 17 15 10 14 15 4 Weapon 5 | . 3 2 1 1 4 7 8 8 8 8 7 6 5 6 5 2 3 5 4 3 . Tool/Special . | . . . . . . . . . . . . . . . . . . . . . . Unused Backups 42 | . . 2 4 1 5 . 6 . 4 . 1 . 2 . 3 . 5 . . 6 3 Power 5 | . . 1 . . . . 4 . . . . . . . . . . . . . . Propulsion 3 | . . . 1 1 . . . . 1 . . . . . . . . . . . . Utility 20 | . . . 1 . . . 2 . 1 . . . 2 . 1 . 4 . . 6 3 Weapon 13 | . . 1 2 . 5 . . . 1 . 1 . . . 2 . 1 . . . . Tool/Special 1 | . . . . . . . . . 1 . . . . . . . . . . . . Average Slot Usage (%) 84 | . 95 96 100 100 97 88 87 96 94 93 77 62 72 70 77 88 79 72 80 82 31 Engine 2 | . 13 14 14 14 3 6 5 . 2 6 7 3 . . . . . . . . . Core 1 | . . . . . 5 1 1 7 4 . . . . . 3 5 . . . 3 3 Reactor 1 | . . . . . . . . . . . . 2 6 5 1 . 4 4 4 . . Treads 7 | . 28 . . . . . . . 5 18 6 8 . . . 11 10 13 12 14 . Leg 4 | . . 24 28 18 . . 7 21 8 . . . . . 4 . . . 4 3 . Wheel 5 | . . . . 9 26 17 9 1 8 4 11 4 13 11 7 . . . . . . Device 6 | . 9 14 14 14 8 12 12 5 . 2 . . . . 3 11 7 5 7 7 . Storage 6 | . 14 12 14 14 9 9 9 7 7 7 7 6 6 5 5 5 5 5 5 4 . Processor 1 | . . . . . . . . . . . . . 9 11 6 . . . . . . Hackware 22 | . . . . . 6 1 7 21 27 28 25 20 20 23 30 35 30 31 28 31 26 Protection 2 | . . . . . 11 12 4 6 6 1 . . . . . . . . . . . Energy Gun 3 | . 14 14 14 14 12 16 13 1 . . . . . . . . . . . 2 . Energy Cannon 3 | . . . . . . . . 5 4 . . 2 6 5 7 7 4 5 4 . . Ballistic Gun 3 | . 10 . . 9 4 2 1 1 9 12 3 6 1 . 1 5 2 . . 1 . Ballistic Cannon 3 | . . . . . 7 4 3 11 2 . 3 . . . . 2 7 . 4 3 . Launcher 1 | . 3 14 14 4 1 3 1 . . . 3 3 . . . . . . . . . Special Weapon 2 | . . . . . . . 3 1 2 6 6 3 5 5 1 . . 5 4 4 . Peak Build Rating 120 | 6 7 14 10 10 34 37 44 49 55 60 56 58 69 69 101 101 114 120 105 115 47 Average Rating 62 | 4 6 7 9 9 28 29 33 46 48 52 50 53 65 69 69 101 101 105 93 100 24 On Entrance 48 | . 6 7 8 10 10 34 30 42 47 51 40 53 58 69 69 101 101 98 91 105 42 Avg Prop Armor Cover (%) 6 | . . . . . 3 . 6 5 8 16 . . . . 10 . . . 3 9 . Naked Turns . | . . . . . . . . . . . . . . . . . . . . . . Heaviest Build 158 | 14 19 19 19 19 78 81 70 69 117 117 128 110 116 111 136 136 158 122 121 119 18 Greatest Support 225 | 40 40 40 20 20 30 30 42 42 80 80 60 60 56 56 140 140 150 225 178 190 70 Greatest Overweight (x) 16 | . . 2 . . 6 8 16 2 11 11 12 1 2 1 15 . 1 . 3 4 4 Average Overweight (x) 1 | . . . . . 1 3 3 1 7 1 3 . 1 1 . . . . . . . Largest Inventory Capacity 25 | 8 10 10 10 10 20 20 20 20 25 25 25 25 25 25 25 25 25 25 25 25 5 Average Capacity 22 | 6 8 9 10 10 19 20 20 20 24 25 25 22 24 25 23 25 25 25 24 23 5 Most Carried 25 | 2 8 10 10 10 20 20 20 20 25 25 23 20 25 25 25 25 25 23 25 24 5 Average Carried 19 | 1 6 9 9 9 15 17 19 19 23 22 20 19 19 25 22 23 24 17 20 20 4 Final Capacity 25 | 8 10 10 10 10 20 20 20 20 25 25 25 20 25 25 25 25 25 25 25 5 5 Final Carried 25 | 2 8 10 10 10 20 20 20 20 25 19 20 20 25 25 23 24 24 14 24 5 5 Class Distribution -------------------- 21% | Botlord-Tank 14% | Mutant 12% | Botlord-Skirmisher 11% | Botlord-Mutant 10% | Bothacker-Skirmisher 9% | Tank 5% | Scavenger-Skirmisher 5% | Scavenger-Mutant 4% | Bothacker-Mutant Dominant Class ---------------- Mutant | -10/Materials Mutant | -10/Mines Mutant | -10/Exiles Mutant | -9/Mines Scavenger-Skirmisher | -8/Materials Scavenger-Skirmisher | -8/Storage Bothacker-Skirmisher | -8/Garrison Bothacker-Skirmisher | -7/Factory Bothacker-Skirmisher | -7/Garrison Botlord-Skirmisher | -7/Factory Botlord-Skirmisher | -7/Garrison Botlord-Skirmisher | -6/Factory Botlord-Mutant | -6/Garrison Botlord-Mutant | -5/Factory Mutant | -5/Garrison Tank | -5/Factory Tank | -5/Garrison Botlord-Mutant | -4/Factory Botlord-Tank | -4/Garrison Botlord-Tank | -4/Factory Mutant | -4/Garrison Resources | -11 -10 -10 -10 -9 -8 -8 -8 -7 -7 -7 -7 -6 -6 -5 -5 -5 -5 -4 -4 -4 -4 ----------- Run | Yrd Mat Min Exi Min Mat Sto Gar Fac Gar Fac Gar Fac Gar Fac Gar Fac Gar Fac Gar Fac Gar Matter Collected 7399 | 253 111 57 . 118 719 594 641 170 764 339 200 253 293 . 445 70 815 406 922 171 58 Remotely . | . . . . . . . . . . . . . . . . . . . . . . Salvage Created 7697 | . 259 99 . 130 915 1129 918 286 638 330 105 145 249 . 561 131 559 170 980 93 . Parts 382 | . 20 10 . 5 41 51 56 15 35 19 14 13 8 . 11 5 44 4 26 5 . Haulers Intercepted 2 | . . . . . 1 1 . . . . . . . . . . . . . . . Recyclers Shooed 5 | . . . . 1 1 2 . . . . . . . . . . . 1 . . . Parts Field Recycled . | . . . . . . . . . . . . . . . . . . . . . . Retrieved Matter . | . . . . . . . . . . . . . . . . . . . . . . Parts Self-Destructed . | . . . . . . . . . . . . . . . . . . . . . . Prevented . | . . . . . . . . . . . . . . . . . . . . . . Parts Restored . | . . . . . . . . . . . . . . . . . . . . . . Kills | -11 -10 -10 -10 -9 -8 -8 -8 -7 -7 -7 -7 -6 -6 -5 -5 -5 -5 -4 -4 -4 -4 ------- Run | Yrd Mat Min Exi Min Mat Sto Gar Fac Gar Fac Gar Fac Gar Fac Gar Fac Gar Fac Gar Fac Gar Combat Hostiles Destroyed 168 | . 12 5 . . 19 23 29 4 13 1 9 2 4 . 10 2 15 4 14 2 . Melee 1 | . . . . . . . . . . . . . . . . . . . . 1 . Guns 66 | . 8 1 . . 9 16 15 . 6 1 . 1 1 . 2 1 4 . . 1 . Cannons 59 | . . . . . 6 1 6 2 7 . 2 1 2 . 6 1 10 3 12 . . AOE 36 | . 4 4 . . 4 6 8 2 . . 7 . . . . . . . 1 . . Classes Destroyed 18 | . 4 . . 2 6 . 2 1 1 . . . . . . . 1 . . 1 . Worker 28 | . 1 . . 1 4 4 . 4 . 12 . 2 . . . . . . . . . Builder 1 | . 1 . . . . . . . . . . . . . . . . . . . . Tunneler 2 | . . . . 1 1 . . . . . . . . . . . . . . . . Hauler 2 | . . . . . 1 1 . . . . . . . . . . . . . . . Recycler 7 | . . . . 1 1 3 . 1 . 1 . . . . . . . . . . . Operator 2 | . . . . . 1 . . . . . . . . . . . . . . 1 . Watcher 2 | . . . . . 1 . . . . . . . . . . . 1 . . . . Swarmer 43 | . 6 3 . . . 2 10 3 6 . 4 . . . 2 . 5 1 1 . . Cutter 3 | . . . . . . . . . . . . . . . . . 2 1 . . . Saboteur 1 | . . . . . . . . . . . . . . . . . . . . 1 . Grunt 64 | . 6 2 . . 12 12 6 2 2 . 3 . 1 . 5 . 3 1 8 1 . Brawler 5 | . . . . . . . 4 . . . . . . . . . . . 1 . . Duelist 4 | . . . . . 1 . . . . . . . 1 . 1 . . 1 . . . Sentry 32 | . . . . . 5 9 5 . 4 . . 1 2 . 2 1 . . 3 . . Specialist 3 | . . . . . . . 3 . . . . . . . . . . . . . . Hunter 4 | . . . . . 1 . 1 . . 1 . . . . . . 1 . . . . Programmer 10 | . . . . . . . . 1 1 . 2 1 . . . 1 3 . 1 . . Behemoth 2 | . . . . . . . . . 1 . . . . . . . 1 . . . . Best Kill Streak 11 | . 3 5 . 2 6 11 8 4 3 3 5 2 1 . 3 1 5 1 5 2 . Combat Bots Only 9 | . 3 5 . . 4 9 8 3 3 1 5 2 1 . 3 1 5 1 5 2 . Max Kills in Single Turn 4 | . 2 2 . 1 3 3 4 4 1 1 3 1 1 . 1 1 2 1 1 1 . Gunslinging 1 | . 1 . . . . 1 . . . . . . . . . . . . . . . Exploded 4 | . 1 2 . . 2 2 4 2 . . 3 . . . . . . . 1 . . Melee 1 | . . . . . . . . . . . . . . . . . . . . 1 . Uniques/NPCs Destroyed . | . . . . . . . . . . . . . . . . . . . . . . Combat | -11 -10 -10 -10 -9 -8 -8 -8 -7 -7 -7 -7 -6 -6 -5 -5 -5 -5 -4 -4 -4 -4 -------- Run | Yrd Mat Min Exi Min Mat Sto Gar Fac Gar Fac Gar Fac Gar Fac Gar Fac Gar Fac Gar Fac Gar Hostile Shots Fired 1566 | . 70 10 . . 89 128 83 . 160 61 60 106 39 . 111 14 148 45 148 277 17 Missed 442 | . 11 4 . . 23 28 28 . 43 19 14 45 7 . 28 3 26 12 42 104 5 Hits 1124 | . 59 6 . . 66 100 55 . 117 42 46 61 32 . 83 11 122 33 106 173 12 Melee 27 | . . . . . . . . . 7 . . . . . . . 14 2 . 4 . Projectile 1097 | . 59 6 . . 66 100 55 . 110 42 46 61 32 . 83 11 108 31 106 169 12 AOE 5 | . . . . . . . . . . . . . . . . . 1 . . . 4 Critical Strikes 53 | . 1 . . . 1 6 1 . 7 2 2 . . . 3 1 11 2 6 10 . Part Disruptions 3 | . . . . . . . . . 1 . . . . . . . 1 . 1 . . Damage Taken 19741 | . 675 55 . . 1055 1552 728 67 2216 605 754 525 436 . 1673 256 2612 730 1995 3396 411 Core 3499 | . 99 19 . . 111 227 107 67 358 104 121 113 17 . 369 73 548 48 308 448 362 Absorbed by Shields 533 | . . . . . . . . . . . . . . . . . . 135 165 192 41 Reduced by Siege Mode 157 | . . . . . . . . . . . . . . . . . 157 . . . . Core Remaining (%) 43 | 100 . . . 52 . . 19 . . . 7 . 84 . . . 1 . . . . Volleys Fired 896 | . 34 4 . 7 60 60 53 22 91 39 19 20 42 . 96 15 75 68 142 48 1 Largest 3 | . 2 2 . 2 3 3 3 3 3 2 2 2 2 . 3 3 3 1 2 2 1 Hottest 236 | . 80 80 . 70 187 187 171 132 132 155 101 123 123 . 231 178 236 98 156 131 7 Shots Fired 1466 | . 68 8 . 14 141 141 108 32 166 67 20 24 45 . 144 29 131 68 208 51 1 Gun 591 | . 58 4 . 14 97 114 65 8 78 55 . 4 3 . 23 8 18 . 23 19 . Cannon 619 | . . . . . 36 11 21 14 78 2 5 19 22 . 112 21 98 20 149 11 . Launcher 49 | . 10 4 . . 8 16 6 . . . 5 . . . . . . . . . . Special 207 | . . . . . . . 16 10 10 10 10 1 20 . 9 . 15 48 36 21 1 Kinetic 489 | . 24 . . 7 46 20 31 11 99 55 4 4 3 . 23 14 69 . 66 13 . Thermal 721 | . 34 4 . 7 87 105 55 11 57 2 1 19 22 . 112 15 47 20 106 17 . Explosive 49 | . 10 4 . . 8 16 6 . . . 5 . . . . . . . . . . Electromagnetic . | . . . . . . . . . . . . . . . . . . . . . . Robot Hit Streak 31 | . 10 4 . 9 9 14 9 5 17 5 13 16 4 . 13 9 14 16 31 12 1 Robot Miss Streak 12 | . 2 3 . 1 11 5 3 7 5 6 6 2 5 . 3 1 12 2 6 2 . Penetration Max 1 | . . . . . . . . . 1 . . . . . 1 . 1 . . . . Secondary Targets 5 | . 2 . . . 1 1 1 . . . . . . . . . . . . . . Max Gunslinging Chain 1 | . 1 . . . 1 1 1 . . . . . . . . . . . . . . Shots Hit Robots 843 | . 54 4 . 10 86 83 66 19 89 36 16 15 18 . 64 12 58 46 132 34 1 Core Hits 381 | . 24 6 . 4 70 60 52 11 31 15 15 5 4 . 21 4 23 3 29 4 . Critical Kills 7 | . . . . . . . . . . 2 . . 1 . . 1 1 1 1 . . Critical Parts Destroyed 9 | . . . . . . . . 1 3 2 . 1 . . . . . . 1 1 . Critical Strikes 34 | . 1 . . . 2 7 1 1 4 4 . 1 1 . . 3 4 1 3 1 . Burn 11 | . 1 . . . 2 7 1 . . . . . . . . . . . . . . Meltdown 4 | . . . . . . . . . . . . . 1 . . . 1 1 1 . . Destroy 13 | . . . . . . . . 1 4 4 . 1 . . . 1 . . 1 1 . Blast 6 | . . . . . . . . . . . . . . . . 2 3 . 1 . . Melee Attacks 25 | . . . . . 1 3 10 . 2 9 . . . . . . . . . . . Impact 25 | . . . . . 1 3 10 . 2 9 . . . . . . . . . . . Slashing . | . . . . . . . . . . . . . . . . . . . . . . Piercing . | . . . . . . . . . . . . . . . . . . . . . . Sneak Attacks 1 | . . . . . . 1 . . . . . . . . . . . . . . . Combat Hostiles . | . . . . . . . . . . . . . . . . . . . . . . Follow-up Attacks . | . . . . . . . . . . . . . . . . . . . . . . Damage Inflicted 22029 | . 1115 231 . 121 2247 2485 1778 948 2248 712 797 461 240 . 1914 376 1795 350 3687 524 . Guns 7483 | . 604 26 . 121 1021 1196 759 146 1137 660 . 86 46 . 498 91 288 . 439 365 . Cannons 9896 | . . . . . 508 203 239 155 1111 33 147 362 194 . 1416 285 1507 350 3248 138 . Explosions 4529 | . 511 205 . . 718 1018 780 647 . . 650 . . . . . . . . . . Melee 87 | . . . . . . 68 . . . 19 . . . . . . . . . . . Ramming 34 | . . . . . . . . . . . . 13 . . . . . . . 21 . Kinetic 7903 | . 229 . . 71 567 300 359 167 1532 660 120 86 46 . 498 194 1145 . 1780 149 . Thermal 10189 | . 441 26 . 50 962 1099 639 781 716 33 27 362 194 . 1416 182 650 350 1907 354 . Explosive 3816 | . 445 205 . . 718 1018 780 . . . 650 . . . . . . . . . . Electromagnetic . | . . . . . . . . . . . . . . . . . . . . . . Impact 87 | . . . . . . 68 . . . 19 . . . . . . . . . . . Slashing . | . . . . . . . . . . . . . . . . . . . . . . Piercing . | . . . . . . . . . . . . . . . . . . . . . . Highest Corruption 13 | . . . . . . . . . 2 2 9 . . . 2 3 8 . 1 11 13 Average Corruption 2 | . . . . . . . . . 1 2 5 . . . 2 2 5 . 1 4 12 Corruption Purged . | . . . . . . . . . . . . . . . . . . . . . . Corruption Blocked . | . . . . . . . . . . . . . . . . . . . . . . Effects 146 | . . . . . . . . . 20 14 9 . . . 17 9 37 . 15 19 6 Message Errors 33 | . . . . . . . . . 4 4 1 . . . 4 2 9 . 4 4 1 Matter Fused 29 | . . . . . . . . . 5 2 6 . . . 4 2 4 . 2 3 1 Heat Flow Errors 15 | . . . . . . . . . 1 3 . . . . . . 5 . 1 4 1 Energy Discharges 13 | . . . . . . . . . 4 1 . . . . 2 1 3 . 1 1 . Parts Rejected 2 | . . . . . . . . . . 1 . . . . . . 1 . . . . Parts Fused 1 | . . . . . . . . . . . . . . . . . . . . 1 . Data Loss (minor) 26 | . . . . . . . . . 3 2 2 . . . 4 2 5 . 3 5 . Data Loss (major) 11 | . . . . . . . . . 2 . . . . . 1 1 5 . 2 . . Misfires 6 | . . . . . . . . . 1 . . . . . 1 1 2 . 1 . . Alerts 4 | . . . . . . . . . . 1 . . . . 1 . 1 . 1 . . Misdirections 3 | . . . . . . . . . . . . . . . . . . . . . 3 Weapon Failures 3 | . . . . . . . . . . . . . . . . . 2 . . 1 . Overload Shots . | . . . . . . . . . . . . . . . . . . . . . . Overflow Damage 532 | . 2 . . . . 114 . 124 16 . 89 25 . . 38 . 88 7 29 . . Projectiles 297 | . . . . . . 2 . 12 16 . 80 25 . . 38 . 88 7 29 . . Explosions 207 | . 2 . . . . 84 . 112 . . 9 . . . . . . . . . . Melee 28 | . . . . . . 28 . . . . . . . . . . . . . . . Knockbacks 42 | . . . . . 22 2 2 . 3 . 2 1 . . . . 7 . 3 . . Impact 1 | . . . . . . . . . . . . 1 . . . . . . . . . Kinetic 40 | . . . . . 21 2 2 . 3 . 2 . . . . . 7 . 3 . . Secondary 1 | . . . . . 1 . . . . . . . . . . . . . . . . Self-Inflicted Damage 202 | . 9 . . . 37 49 . 67 . . 40 . . . . . . . . . . Shots 9 | . 1 . . . 1 5 . 1 . . 1 . . . . . . . . . . Rammed 5 | . . . . . . . . . . . . 3 . . . . . . . 2 . Targets Rammed 5 | . . . . . . . . . . . . 3 . . . . . . . 2 . Kicked . | . . . . . . . . . . . . . . . . . . . . . . Crushed . | . . . . . . . . . . . . . . . . . . . . . . Highest Temperature 688 | . 246 54 . 18 562 445 78 57 228 190 27 204 206 . 650 81 688 126 246 212 92 Average Temperature 104 | . 67 25 . 8 131 164 21 23 67 69 12 64 47 . 146 36 182 38 53 64 49 Received Heat Transfer 4222 | . 264 . . . 477 684 153 . 324 102 126 171 141 . 549 18 111 178 453 441 30 Effects 54 | . . . . . 9 12 . . . . . . 1 . 10 . 22 . . . . Shutdowns 9 | . . . . . 1 2 . . . . . . . . 2 . 4 . . . . Energy Bleed 8 | . . . . . 2 . . . . . . . . . 2 . 4 . . . . Interference 15 | . . . . . 2 8 . . . . . . 1 . . . 4 . . . . Matter Decay 1 | . . . . . . 1 . . . . . . . . . . . . . . . Short Circuit 8 | . . . . . . 1 . . . . . . . . 5 . 2 . . . . Damage (minor) 4 | . . . . . . . . . . . . . . . 1 . 3 . . . . Damage (major) 6 | . . . . . 4 . . . . . . . . . . . 2 . . . . Damage (core) 3 | . . . . . . . . . . . . . . . . . 3 . . . . Siege Activations 9 | . . . . . . . . . . . . . . . . . 8 . . 1 . Total Turns 215 | . . . . . . . . . . . . . . . . . 209 . . 6 . Longest Duration 119 | . . . . . . . . . . . . . . . . . 119 . . 6 . Martial Activations . | . . . . . . . . . . . . . . . . . . . . . . Shielding Activations . | . . . . . . . . . . . . . . . . . . . . . . Robots Disrupted . | . . . . . . . . . . . . . . . . . . . . . . Combat Hostiles . | . . . . . . . . . . . . . . . . . . . . . . Robots Corrupted 1 | . . . . . . 1 . . . . . . . . . . . . . . . Combat Hostiles . | . . . . . . . . . . . . . . . . . . . . . . Parts Fried . | . . . . . . . . . . . . . . . . . . . . . . Impact Corruptions 1 | . . . . . . 1 . . . . . . . . . . . . . . . Robots Melted 6 | . . . . . . . . . . . . . 1 . 2 . 1 1 1 . . Combat Hostiles 6 | . . . . . . . . . . . . . 1 . 2 . 1 1 1 . . Parts Melted 31 | . . . . . 3 7 3 1 1 . . . 2 . 4 . 4 1 3 2 . Heat Transferred 16612 | . 1234 74 . 148 2072 2775 1350 635 962 50 37 550 300 . 1896 250 722 500 2600 457 . Parts Sabotaged 1 | . . . . . . . . . . . . . . . . . . . . 1 . Parts Stolen . | . . . . . . . . . . . . . . . . . . . . . . Parts Stripped . | . . . . . . . . . . . . . . . . . . . . . . Power Chain Reactions . | . . . . . . . . . . . . . . . . . . . . . . Alert | -11 -10 -10 -10 -9 -8 -8 -8 -7 -7 -7 -7 -6 -6 -5 -5 -5 -5 -4 -4 -4 -4 ------- Run | Yrd Mat Min Exi Min Mat Sto Gar Fac Gar Fac Gar Fac Gar Fac Gar Fac Gar Fac Gar Fac Gar Maximum Alert Level 5 | . 1 1 . . 1 2 5 3 4 2 2 1 3 2 5 3 4 3 5 5 2 Low Security (%) 14 | 100 97 95 . 100 72 15 . . . . . 84 11 . . . . . . . . Level 1 7 | . 2 4 . . 27 36 11 14 7 3 14 15 10 . 4 . . 1 . . 5 Level 2 25 | . . . . . . 48 15 21 40 96 85 . 56 100 19 . 26 49 1 33 94 Level 3 22 | . . . . . . . 35 63 44 . . . 21 . 31 100 55 49 2 1 . Level 4 16 | . . . . . . . 37 . 7 . . . . . 30 . 17 . 31 54 . Level 5 13 | . . . . . . . 1 . . . . . . . 14 . . . 65 10 . High Security . | . . . . . . . . . . . . . . . . . . . . . . Max Security . | . . . . . . . . . . . . . . . . . . . . . . Peak Influence 3179 | . 218 208 . 5 323 507 1685 886 1121 588 503 263 805 422 1778 1023 1199 972 3179 1668 447 Initial 1668 | . . 81 . . . 65 299 884 205 588 329 263 28 422 288 933 577 629 669 1668 425 Average 900 | . 51 135 . 1 128 367 969 686 717 485 455 96 504 417 1097 892 872 689 1984 1207 418 Influence Increases 13901 | . 446 157 . 15 658 830 1496 331 1066 427 294 190 847 . 1710 248 782 1182 2640 510 72 Destroy 0b10 Robot/C 5480 | . 240 100 . . 380 460 680 120 400 140 180 60 440 . 720 40 380 520 480 120 20 Destroy 0b10 Robot/NC 270 | . 10 . . 15 45 40 . 30 10 75 . 10 . . . . 5 10 10 10 . Destroy Leader 678 | . 60 20 . . 104 122 20 22 20 40 20 30 10 . 30 20 40 60 30 30 . Allied During Kill 1340 | . . . . . . . 165 45 10 19 . 2 127 . 137 . 8 372 398 55 2 Trap Triggered on 0b10 10 | . . . . . . . . 10 . . . . . . . . . . . . . Successful Hack 178 | . 4 . . . 9 . 16 9 14 45 . 51 . . . 12 14 . . 4 . Disable Machine 540 | . 45 15 . . 30 105 . 75 90 45 . . 45 . 30 . . 15 . 45 . Anti-Garrison Action 3800 | . . . . . . . 500 . 450 . 50 . 200 . 500 150 200 150 1550 . 50 Destroy Structure 960 | . 42 22 . . 60 58 85 20 57 48 44 7 10 . 113 26 120 40 142 66 . Partial Spotted 30 | . . . . . . . . . . . . 30 . . . . . . . . . Lose Combat Pursuer 615 | . 45 . . . 30 45 30 . 15 15 . . 15 . 180 . 15 15 30 180 . Influence Decreases 13454 | . 236 309 58 15 504 523 272 1723 238 1077 262 652 83 393 344 1201 408 1425 417 3081 233 Entered New Map 6406 | . . 129 58 . . 89 162 801 88 533 142 240 13 383 124 845 248 570 287 1511 183 Time Decay 2993 | . 226 160 . 15 304 334 . 342 . 404 . 372 . 10 . 206 . 270 . 350 . Lost Part 920 | . 10 20 . . 50 100 50 . 110 80 60 30 10 . 100 . 60 30 70 110 30 Lost Ally 1060 | . . . . . . . 60 80 40 60 60 10 60 . 120 . 100 180 60 210 20 Purge Threat 2075 | . . . . . 150 . . 500 . . . . . . . 150 . 375 . 900 . Squads Dispatched 42 | . 4 . . . 3 6 . 2 . 3 . 3 . . . 3 . 10 . 8 . Investigation 6 | . 2 . . . 3 . . . . . . . . . . . . . . 1 . Extermination 5 | . . . . . . . . 1 . 1 . 1 . . . . . 1 . 1 . Reinforcement 15 | . 2 . . . . 3 . 1 . 1 . 1 . . . . . 6 . 1 . Assault 12 | . . . . . . . . . . 1 . . . . . 3 . 3 . 5 . Garrison 4 | . . . . . . 3 . . . . . 1 . . . . . . . . . Intercept . | . . . . . . . . . . . . . . . . . . . . . . Searches Triggered . | . . . . . . . . . . . . . . . . . . . . . . Construction Impeded 2 | . . . . . . 1 . . . . . . . . . . . 1 . . . Haulers Reinforced 1 | . . . . . . . . . . . . . . . . . . 1 . . . Active Scanning Responses . | . . . . . . . . . . . . . . . . . . . . . . Cargo Convoy Interrupts 1 | . . . . . . . . 1 . . . . . . . . . . . . . Stealth | -11 -10 -10 -10 -9 -8 -8 -8 -7 -7 -7 -7 -6 -6 -5 -5 -5 -5 -4 -4 -4 -4 --------- Run | Yrd Mat Min Exi Min Mat Sto Gar Fac Gar Fac Gar Fac Gar Fac Gar Fac Gar Fac Gar Fac Gar Distress Signals 11 | . . . . . 2 4 . 1 . 1 . . . . . . . . . 3 . Communications Jammed . | . . . . . . . . . . . . . . . . . . . . . . Distress Signals . | . . . . . . . . . . . . . . . . . . . . . . Times Spotted 467 | . 25 5 . . 26 31 46 5 31 16 15 9 31 . 52 4 34 52 41 38 6 Peak Tracking Total 20 | . 6 3 . . 6 7 8 3 4 3 5 3 4 . 6 2 9 6 6 20 4 Tactical Retreats 27 | . 2 . . . 2 2 2 . 1 1 . . 1 . 9 . 1 1 1 4 . Traps | -11 -10 -10 -10 -9 -8 -8 -8 -7 -7 -7 -7 -6 -6 -5 -5 -5 -5 -4 -4 -4 -4 ------- Run | Yrd Mat Min Exi Min Mat Sto Gar Fac Gar Fac Gar Fac Gar Fac Gar Fac Gar Fac Gar Fac Gar Traps Triggered 42 | . 2 . . . 1 1 6 . 10 . 2 . 5 . 7 . 4 . 1 2 1 Indirectly . | . . . . . . . . . . . . . . . . . . . . . . Trap Hack Attempts 7 | . . . . . . . 7 . . . . . . . . . . . . . . Triggered . | . . . . . . . . . . . . . . . . . . . . . . Disarmed . | . . . . . . . . . . . . . . . . . . . . . . Reprogrammed 2 | . . . . . . . 2 . . . . . . . . . . . . . . Reused . | . . . . . . . . . . . . . . . . . . . . . . Traps Extracted . | . . . . . . . . . . . . . . . . . . . . . . Installed 1 | . . . . . . . . . 1 . . . . . . . . . . . . Triggered 1 | . . . . . . . . 1 . . . . . . . . . . . . . Machines | -11 -10 -10 -10 -9 -8 -8 -8 -7 -7 -7 -7 -6 -6 -5 -5 -5 -5 -4 -4 -4 -4 ---------- Run | Yrd Mat Min Exi Min Mat Sto Gar Fac Gar Fac Gar Fac Gar Fac Gar Fac Gar Fac Gar Fac Gar Machines Disabled 76 | . 3 1 . . 2 7 8 5 12 3 1 . 7 . 6 1 2 2 13 3 . Max in Single Turn 5 | . 2 1 . . 1 1 2 5 2 2 1 . 1 . 1 1 1 . 1 . . Garrison Access 2 | . . . . . . . . . . . . . . . . 1 . 1 . . . Garrison Relay 26 | . . . . . . . 5 . 4 . 1 . 4 . 4 . 2 . 6 . . Phase Generator 3 | . . . . . . . 1 . 1 . . . 1 . . . . . . . . Machines Repaired . | . . . . . . . . . . . . . . . . . . . . . . Machines Dismantled . | . . . . . . . . . . . . . . . . . . . . . . Machines Sabotaged . | . . . . . . . . . . . . . . . . . . . . . . Overloaded Fab Kills . | . . . . . . . . . . . . . . . . . . . . . . Hacking | -11 -10 -10 -10 -9 -8 -8 -8 -7 -7 -7 -7 -6 -6 -5 -5 -5 -5 -4 -4 -4 -4 --------- Run | Yrd Mat Min Exi Min Mat Sto Gar Fac Gar Fac Gar Fac Gar Fac Gar Fac Gar Fac Gar Fac Gar Machines Accessed 49 | . 3 1 1 . 6 3 3 4 2 3 . 5 1 1 . 4 1 2 5 3 1 Terminals 32 | . 3 . . . 4 2 3 1 2 1 . 4 1 . . 2 1 . 5 2 1 Fabricators . | . . . . . . . . . . . . . . . . . . . . . . Repair Stations . | . . . . . . . . . . . . . . . . . . . . . . Recycling Units 2 | . . . . . . . . 2 . . . . . . . . . . . . . Scanalyzers 3 | . . . . . 2 . . . . 1 . . . . . . . . . . . Garrison Access 10 | . . . . . . 1 . 1 . 1 . 1 . 1 . 2 . 2 . 1 . Total Hacks 101 | . 11 1 1 . 13 3 5 14 2 4 . 15 2 2 . 9 1 2 8 5 3 Successful 49 | . 4 1 1 . 7 1 1 5 1 3 . 10 . 2 . 5 1 1 1 5 . Failed 52 | . 7 . . . 6 2 4 9 1 1 . 5 2 . . 4 . 1 7 . 3 Catastrophic 9 | . . . . . 3 . . 1 1 1 . 1 . . . . . 1 1 . . Database Lockouts . | . . . . . . . . . . . . . . . . . . . . . . Manual 62 | . 11 . 1 . 9 2 . 12 . 1 . 14 . . . 8 . 1 . 3 . Terminals 71 | . 11 . . . 9 2 5 3 2 1 . 14 2 . . 6 1 . 8 4 3 Fabricators . | . . . . . . . . . . . . . . . . . . . . . . Repair Stations . | . . . . . . . . . . . . . . . . . . . . . . Recycling Units 10 | . . . . . . . . 10 . . . . . . . . . . . . . Scanalyzers 6 | . . . . . 4 . . . . 2 . . . . . . . . . . . Garrison Access 12 | . . . . . . 1 . 1 . 1 . 1 . 2 . 3 . 2 . 1 . Terminal Hacks 12 | . . 1 1 . 2 . 1 . 1 . . 2 . . . 1 1 . 1 1 . Open Door 1 | . . 1 . . . . . . . . . . . . . . . . . . . Branch Access Points 2 | . . . . . 1 . . . . . . . . . . . . . . 1 . Terminal Index 1 | . . . . . . . . . . . . 1 . . . . . . . . . Unreport Threat 2 | . . . . . 1 . . . . . . . . . . 1 . . . . . Registered Components 1 | . . . . . . . . . . . . 1 . . . . . . . . . Garrison Registry 2 | . . . . . . . . . . . . . . . . . 1 . 1 . . Patrol Navigation 1 | . . . . . . . . . 1 . . . . . . . . . . . . Security Stations 1 | . . . . . . . 1 . . . . . . . . . . . . . . Proto ID Catalog 1 | . . . 1 . . . . . . . . . . . . . . . . . . Fabricator Hacks . | . . . . . . . . . . . . . . . . . . . . . . Repair Station Hacks . | . . . . . . . . . . . . . . . . . . . . . . Recycling Unit Hacks 1 | . . . . . . . . 1 . . . . . . . . . . . . . Report Inventory 1 | . . . . . . . . 1 . . . . . . . . . . . . . Scanalyzer 5 | . . . . . 4 . . . . 1 . . . . . . . . . . . Insert Component 3 | . . . . . 2 . . . . 1 . . . . . . . . . . . Analyze 1 | . . . . . 1 . . . . . . . . . . . . . . . . Retrieve Study 1 | . . . . . 1 . . . . . . . . . . . . . . . . Garrison Access Hacks 10 | . . . . . . 1 . 1 . 1 . 1 . 2 . 2 . 1 . 1 . Unlock Access 9 | . . . . . . 1 . 1 . 1 . 1 . 1 . 2 . 1 . 1 . Coupler Status 1 | . . . . . . . . . . . . . . 1 . . . . . . . Unauthorized Hacks 21 | . 4 . . . 1 . . 3 . 1 . 7 . . . 2 . . . 3 . Terminals 17 | . 4 . . . 1 . . . . 1 . 7 . . . 1 . . . 3 . Assimilate 1 | . . . . . . . . . . . . 1 . . . . . . . . . Botnet 10 | . 2 . . . 1 . . . . 1 . 3 . . . 1 . . . 2 . Operators 2 | . . . . . . . . . . . . 1 . . . . . . . 1 . Skim 4 | . 2 . . . . . . . . . . 2 . . . . . . . . . Fabricators . | . . . . . . . . . . . . . . . . . . . . . . Repair Stations . | . . . . . . . . . . . . . . . . . . . . . . Recycling Units 3 | . . . . . . . . 3 . . . . . . . . . . . . . Reject 1 | . . . . . . . . 1 . . . . . . . . . . . . . Recyclers 1 | . . . . . . . . 1 . . . . . . . . . . . . . Mask 1 | . . . . . . . . 1 . . . . . . . . . . . . . Scanalyzers . | . . . . . . . . . . . . . . . . . . . . . . Garrison Access 1 | . . . . . . . . . . . . . . . . 1 . . . . . Restock 1 | . . . . . . . . . . . . . . . . 1 . . . . . Data Cores Recovered 1 | . . . . . 1 . . . . . . . . . . . . . . . . Used 1 | . . . . . 1 . . . . . . . . . . . . . . . . Hacking Detections 35 | . 3 . . . 5 2 2 2 1 2 . 4 1 . . 3 1 2 4 2 1 Full Trace Events 5 | . 1 . . . 2 . . . . . . . . . . . . . 1 . 1 Feedback Events 1 | . . . . . . . . . . . . . . . . . . . . . 1 Corruption 1 | . . . . . . . . . . . . . . . . . . . . . 1 Feedback Blocked . | . . . . . . . . . . . . . . . . . . . . . . Robot Schematics Acquired . | . . . . . . . . . . . . . . . . . . . . . . Robots Built . | . . . . . . . . . . . . . . . . . . . . . . Authchips . | . . . . . . . . . . . . . . . . . . . . . . Time . | . . . . . . . . . . . . . . . . . . . . . . Total Robot Build Rating . | . . . . . . . . . . . . . . . . . . . . . . Part Schematics Acquired 1 | . . . . . 1 . . . . . . . . . . . . . . . . Parts Built . | . . . . . . . . . . . . . . . . . . . . . . Authchips . | . . . . . . . . . . . . . . . . . . . . . . Time . | . . . . . . . . . . . . . . . . . . . . . . Total Part Build Rating . | . . . . . . . . . . . . . . . . . . . . . . Part Studies Acquired 1 | . . . . . 1 . . . . . . . . . . . . . . . . Parts Repaired . | . . . . . . . . . . . . . . . . . . . . . . Time . | . . . . . . . . . . . . . . . . . . . . . . Parts Recycled . | . . . . . . . . . . . . . . . . . . . . . . Recycled Matter . | . . . . . . . . . . . . . . . . . . . . . . Retrieved Matter . | . . . . . . . . . . . . . . . . . . . . . . Retrieved Components . | . . . . . . . . . . . . . . . . . . . . . . Parts Scanalyzed 1 | . . . . . 1 . . . . . . . . . . . . . . . . Part Schematics Acquired 1 | . . . . . 1 . . . . . . . . . . . . . . . . Parts Damaged . | . . . . . . . . . . . . . . . . . . . . . . Bothacking | -11 -10 -10 -10 -9 -8 -8 -8 -7 -7 -7 -7 -6 -6 -5 -5 -5 -5 -4 -4 -4 -4 ------------ Run | Yrd Mat Min Exi Min Mat Sto Gar Fac Gar Fac Gar Fac Gar Fac Gar Fac Gar Fac Gar Fac Gar Used RIF Installer 8 | . . . . . . . 2 . 2 . . . 1 . 1 . 1 . 1 . . Coupler Efficiency 1 | . . . . . . . . . . . . . . . . . 1 . . . . Zone Cloak 1 | . . . . . . . . . 1 . . . . . . . . . . . . Robot Detection 1 | . . . . . . . . . . . . . . . 1 . . . . . . Watcher Feeds 1 | . . . . . . . . . 1 . . . . . . . . . . . . Patrol Navigation 1 | . . . . . . . . . . . . . 1 . . . . . . . . Program Shield 1 | . . . . . . . 1 . . . . . . . . . . . . . . Autooverride 1 | . . . . . . . . . . . . . . . . . . . 1 . . Robots Hacked 105 | . . . . . . . 11 2 7 7 4 1 10 . 4 . 9 27 18 4 1 Non-combat 8 | . . . . . . . . 2 . . . . . . . . . 4 . 2 . Combat 97 | . . . . . . . 11 . 7 7 4 1 10 . 4 . 9 23 18 2 1 Autooverrided 3 | . . . . . . . . . . . . . . . . . . . 2 1 . Robot Hacks Applied 132 | . . . . . . . 11 8 8 7 5 1 10 . 4 . 9 33 18 17 1 parse_system 3 | . . . . . . . . . . . . . . . . . . 2 1 . . no_distress 2 | . . . . . . . . 1 . . . . . . . . . . . 1 . purge_threat 21 | . . . . . . . . 5 . . . . . . . . . 3 . 13 . disarm_traps 1 | . . . . . . . . . . . . . . . . . . . . 1 . reprogram_traps 2 | . . . . . . . . 2 . . . . . . . . . . . . . map_route 1 | . . . . . . . . . . . . . . . . . . . . 1 . find_garrison 1 | . . . . . . . . . . . . . . . . . . 1 . . . scatter_targeting 8 | . . . . . . . 1 . . . . . 2 . . . . 4 1 . . disrupt_area 1 | . . . . . . . . . . . . . . . . . . . 1 . . overload_power 1 | . . . . . . . . . . . 1 . . . . . . . . . . amplify_resonance 16 | . . . . . . . . . 3 . 1 . 3 . 3 . 2 2 2 . . reboot_system 1 | . . . . . . . . . 1 . . . . . . . . . . . . overwrite_iff 8 | . . . . . . . . . 3 1 . . . . . . 2 2 . . . formatsys_low 1 | . . . . . . . . . . . . . . . . . . 1 . . . formatsys_high 63 | . . . . . . . 10 . 1 5 3 1 5 . 1 . 5 18 12 1 1 formatsys_deep 2 | . . . . . . . . . . 1 . . . . . . . . 1 . . Relay Couplers Released 112 | . . . . . . . 21 . 16 . 5 . 16 . 16 6 8 2 22 . . Machine Destruction 106 | . . . . . . . 21 . 13 . 5 . 16 . 16 3 8 2 22 . . Programmers 6 | . . . . . . . . . 3 . . . . . . 3 . . . . . Attached 65 | . . . . . . . 7 3 6 4 3 1 4 . 6 . 6 9 9 7 . Fabnet Peak Effective % . | . . . . . . . . . . . . . . . . . . . . . . Robots Rewired 6 | . . . . . . . . . . . . . . . . . . . 6 . . Allies Hacked 1 | . . . . . . . . . . . . 1 . . . . . . . . . Hacks Repelled . | . . . . . . . . . . . . . . . . . . . . . . Allies | -11 -10 -10 -10 -9 -8 -8 -8 -7 -7 -7 -7 -6 -6 -5 -5 -5 -5 -4 -4 -4 -4 -------- Run | Yrd Mat Min Exi Min Mat Sto Gar Fac Gar Fac Gar Fac Gar Fac Gar Fac Gar Fac Gar Fac Gar Total Allies 96 | . . 2 . . . . 10 . 5 8 3 2 8 . 3 . 7 21 22 4 1 Largest Group 29 | . . 2 2 . . . 10 7 2 4 3 2 5 5 5 . 3 12 29 16 1 Highest-Rated Group 1692 | . . 49 49 . . . 165 110 52 85 48 58 224 224 224 . 107 683 1692 810 49 Highest-Rated Ally 142 | . . 31 31 . . . 24 16 39 40 16 32 80 80 95 . 85 142 142 95 49 Total Orders 73 | . . . . . . 2 10 2 2 2 . 3 . . 1 . . 4 46 1 . STAY 40 | . . . . . . . 4 1 1 1 . 2 . . 1 . . 2 28 . . ROAM 1 | . . . . . . . . . . . . . . . . . . . . 1 . FOLLOW 30 | . . . . . . . 6 1 1 1 . 1 . . . . . 2 18 . . EXPLORE 1 | . . . . . . 1 . . . . . . . . . . . . . . . RETURN 1 | . . . . . . 1 . . . . . . . . . . . . . . . Ally Attacks 555 | . . . . . . 1 37 48 21 44 7 2 54 . 93 . 20 111 66 45 6 Total Damage 15684 | . . . . . . . 494 578 542 625 64 125 1676 . 2989 . 657 4086 1977 1655 216 Kills 115 | . . . . . . . 5 4 7 8 . 1 18 . 27 . 4 24 11 5 1 Allies Corrupted 9 | . . . . . . . . . . . . . . . . . . 1 1 7 . Allies Melted . | . . . . . . . . . . . . . . . . . . . . . . Intel | -11 -10 -10 -10 -9 -8 -8 -8 -7 -7 -7 -7 -6 -6 -5 -5 -5 -5 -4 -4 -4 -4 ------- Run | Yrd Mat Min Exi Min Mat Sto Gar Fac Gar Fac Gar Fac Gar Fac Gar Fac Gar Fac Gar Fac Gar Active Infowar (turns) 1323 | . 520 319 335 84 65 . . . . . . . . . . . . . . . . Seismic 1323 | . 520 319 335 84 65 . . . . . . . . . . . . . . . . Robot Analysis Total . | . . . . . . . . . . . . . . . . . . . . . . Derelict Logs Recovered . | . . . . . . . . . . . . . . . . . . . . . . Drone Launches 1 | . . . . . . 1 . . . . . . . . . . . . . . . Drone Recoveries 1 | . . . . . . 1 . . . . . . . . . . . . . . . Exploration | -11 -10 -10 -10 -9 -8 -8 -8 -7 -7 -7 -7 -6 -6 -5 -5 -5 -5 -4 -4 -4 -4 ------------- Run | Yrd Mat Min Exi Min Mat Sto Gar Fac Gar Fac Gar Fac Gar Fac Gar Fac Gar Fac Gar Fac Gar Turns Passed 19995 | 80 730 323 335 84 836 746 1825 779 1986 974 504 902 870 35 2157 434 1460 595 3451 784 105 Spaces Moved 10001 | 45 371 234 275 53 489 321 1017 388 775 396 250 468 621 31 1072 246 591 230 1624 410 94 Core 162 | 2 . 10 . . . . 3 . . . . . . . 6 . . . . 56 85 Treads 4297 | 43 371 2 . . . . . . 130 261 90 234 . . 112 246 591 230 1624 354 9 Legs 1455 | . . 222 275 33 . . 271 347 . . . . . . 307 . . . . . . Wheels 4087 | . . . . 20 489 321 743 41 645 135 160 234 621 31 647 . . . . . . Hover . | . . . . . . . . . . . . . . . . . . . . . . Flight . | . . . . . . . . . . . . . . . . . . . . . . Fastest Speed 50 | 50 160 120 120 80 85 85 100 115 115 110 115 115 115 115 112 145 145 150 152 50 50 Average Speed 154 | 155 160 121 120 104 96 122 147 178 212 199 172 172 117 115 131 145 164 150 172 154 98 Slowest Speed 850 | 160 160 160 120 120 160 190 850 186 560 240 250 240 130 115 800 145 225 152 400 250 250 Overloaded Moves . | . . . . . . . . . . . . . . . . . . . . . . Propulsion Burnouts . | . . . . . . . . . . . . . . . . . . . . . . Robots Hopped . | . . . . . . . . . . . . . . . . . . . . . . Potential Cave-ins . | . . . . . . . . . . . . . . . . . . . . . . Cave-ins Triggered . | . . . . . . . . . . . . . . . . . . . . . . Exploration Rate (%) 42 | 5 75 65 63 12 46 51 95 11 73 21 31 13 87 2 87 14 48 11 85 20 18 Regions Visited 21 Branch Regions 4 Pre-discovered Areas . | . . . . . . . . . . . . . . . . . . . . . . Known Exits Taken 9 | . . . . . 1 1 . 1 . 1 . 1 . 1 . 1 . 1 . 1 . Unknown Exits Taken 5 | 1 1 1 1 1 . . . . . . . . . . . . . . . . . Scrap Searched 1 | . . 1 . . . . . . . . . . . . . . . . . . . Spaces Dug 45 | . . . . . 1 1 5 . 1 4 . 2 . . 4 9 6 5 1 6 . Terrain Destroyed 584 | . 44 22 . . 59 67 102 18 79 53 41 7 . . 8 12 35 9 19 9 . Melee 12 | . . . . . 1 1 5 . 1 4 . . . . . . . . . . . Projectile 117 | . . . . . 1 1 . 3 5 8 . 7 . . 8 12 35 9 19 9 . AOE 453 | . 44 22 . . 57 65 97 15 72 40 41 . . . . . . . . . . Terrain Rammed . | . . . . . . . . . . . . . . . . . . . . . . Walls Destroyed . | . . . . . . . . . . . . . . . . . . . . . . Machines Disabled . | . . . . . . . . . . . . . . . . . . . . . . Actions | -11 -10 -10 -10 -9 -8 -8 -8 -7 -7 -7 -7 -6 -6 -5 -5 -5 -5 -4 -4 -4 -4 --------- Run | Yrd Mat Min Exi Min Mat Sto Gar Fac Gar Fac Gar Fac Gar Fac Gar Fac Gar Fac Gar Fac Gar Total 13244 | 52 439 266 282 67 727 544 1241 446 963 498 310 535 727 30 1680 300 979 445 2084 523 106 Wait 1517 | . 23 8 . . 97 112 47 19 12 23 5 33 8 . 428 36 251 124 259 32 . Move 9986 | 44 370 233 274 52 488 321 1016 388 774 396 249 468 620 30 1071 245 590 230 1623 410 94 Hop . | . . . . . . . . . . . . . . . . . . . . . . Pick Up 206 | 2 7 7 4 2 32 13 22 4 23 5 9 2 13 . 11 2 20 2 24 2 . Fast Attach 86 | 6 1 4 . 1 4 5 8 3 6 3 . 2 3 . 19 . 7 . 10 4 . Attach 109 | . 1 1 . . 9 7 7 2 9 10 10 3 4 . 9 . 9 9 8 10 1 Detach 7 | . . 1 . . . . . . . . 1 . . . 3 . . . . 1 1 Swap 111 | . 2 1 . 2 21 16 18 4 9 10 3 1 1 . 3 1 4 2 7 6 . Drop 133 | . 1 7 4 3 15 7 20 4 10 3 4 2 3 . 16 1 19 . 6 8 . Fire 896 | . 34 4 . 7 60 60 53 22 91 39 19 20 42 . 96 15 75 68 142 48 1 Melee 25 | . . . . . 1 3 10 . 2 9 . . . . . . . . . . . Ram . | . . . . . . . . . . . . . . . . . . . . . . Kick . | . . . . . . . . . . . . . . . . . . . . . . Crush 5 | . . . . . . . . . . . . 3 . . . . . . . 2 . Escape Stasis 134 | . . . . . . . 29 . 26 . 10 . 32 . 24 . 4 . . . 9 Rewire 21 | . . . . . . . 4 . . . . 1 1 . . . . 10 5 . . Trap 8 | . . . . . . . 7 . 1 . . . . . . . . . . . . Miscellaneous . | . . . . . . . . . . . . . . . . . . . . . . Route ------- -11/Scrapyard -10/Materials (discovered 3 exits: [*Mat x2] / *Min) -10/Mines (discovered 3 exits: [*Mat x2] / *Exi) -10/Exiles -9/Mines -8/Materials (discovered 3 exits: *Fac / *Sto x2) -8/Storage -8/Garrison (discovered 3 exits: *Fac x3) -7/Factory -7/Garrison (discovered 2 exits: *Fac x2) -7/Factory (discovered 2 exits: *Fac / Gar) -7/Garrison -6/Factory (discovered 3 exits: *Fac / [*Low] / Gar) -6/Garrison (discovered 3 exits: *Fac x3) -5/Factory -5/Garrison (discovered 3 exits: *Fac x3) -5/Factory (discovered 2 exits: [*Upp] / Gar) -5/Garrison (discovered 3 exits: *Fac x3) -4/Factory (discovered 2 exits: *Upp / Gar) -4/Garrison (discovered 4 exits: *Fac x4) -4/Factory (discovered 6 exits: *Upp x2 / Ext x2 / Arm / Gar) -4/Garrison History --------- Turn | Location | Event 2 | -11/Scrapyard | Met Revision 17 13 | -11/Scrapyard | Discovered new exit (range 14) 81 | -11/Scrapyard | Entered Materials 304 | -10/Materials | Discovered new exit (range 9) 312 | -10/Materials | Build established: Mutant 508 | -10/Materials | Discovered new exit (range 13) 793 | -10/Materials | Discovered new exit (range 11) 811 | -10/Materials | Entered Mines 832 | -10/Mines | Discovered new exit (range 15) 1065 | -10/Mines | Found the Drone Emporium 1072 | -10/Mines | Found Prototype Device 1072 | -10/Mines | Identified Thief Drone Bay 1108 | -10/Mines | Discovered new exit (range 8) 1118 | -10/Mines | Assembled infested the area 1121 | -10/Mines | Deemed a non-threat by the Exiles lab entrance 1121 | -10/Mines | Discovered new exit (range 5) 1134 | -10/Mines | Entered Exiles 1134 | -10/Exiles | Accompanied by 2 allies 1164 | -10/Exiles | Led the pair of lost Derelicts to a safe place 1177 | -10/Exiles | Met 8R-AWN 1196 | -10/Exiles | Met EX-HEX 1232 | -10/Exiles | Met EX-BIN 1296 | -10/Exiles | Aligned with FarCom system 1297 | -10/Exiles | Given EX-Vault access code 1327 | -10/Exiles | Opened EX-Vault 1335 | -10/Exiles | Found Supersonic Drone Bay 1359 | -10/Exiles | Warned to stay clear of 0b10 Research branches 1393 | -10/Exiles | Met EX-DEC 1455 | -10/Exiles | Discovered new exit (range 14) 1469 | -10/Exiles | Left Exiles lab with Supersonic Drone Bay 1469 | -10/Exiles | Entered Mines 1482 | -9/Mines | Met a Derelict bent on vengeance 1484 | -9/Mines | Discovered new exit (range 11) 1553 | -9/Mines | Entered Materials 1553 | -8/Materials | Evolved 4 slots: Propulsion x1, Utility x2, Weapon x1 1707 | -8/Materials | Found Powered Armor 1709 | -8/Materials | Found Powered Armor 1714 | -8/Materials | Found Powered Armor 1719 | -8/Materials | Found Powered Armor 1793 | -8/Materials | Discovered new exit (range 12) 1805 | -8/Materials | Identified exit to Storage 2107 | -8/Materials | Discovered new exit (range 16) 2330 | -8/Materials | Build established: Scavenger-Skirmisher 2389 | -8/Materials | Entered Storage 2552 | -8/Storage | Lost 5 parts (2p1n2u) 2564 | -8/Storage | Destroyed 9 combat bots 2748 | -8/Storage | Core integrity fell below 50% 2833 | -8/Storage | Garrison activated, responded to threat 2880 | -8/Storage | Lost 3 parts (1n1u1w) 3124 | -8/Storage | Identified exit to Garrison 3135 | -8/Storage | Entered Garrison 3163 | -8/Garrison | Learned Factory security intel 3345 | -8/Garrison | Garrison Relay disabled 3413 | -8/Garrison | Triggered checkpoint 3426 | -8/Garrison | Garrison Relay disabled 3491 | -8/Garrison | Phase Generator disabled 3636 | -8/Garrison | Destroyed 8 combat bots 3817 | -8/Garrison | Triggered checkpoint 3864 | -8/Garrison | Installed Relay Interface Framework 3881 | -8/Garrison | Discovered new exit (range 14) 3949 | -8/Garrison | Garrison Relay disabled 3973 | -8/Garrison | Triggered checkpoint 4045 | -8/Garrison | Triggered checkpoint 4065 | -8/Garrison | Triggered checkpoint 4127 | -8/Garrison | Triggered checkpoint 4181 | -8/Garrison | Discovered new exit (range 14) 4267 | -8/Garrison | Expanded RIF knowledge: Program Shield 4464 | -8/Garrison | Garrison Relay disabled 4657 | -8/Garrison | Triggered checkpoint 4730 | -8/Garrison | Garrison Relay disabled 4826 | -8/Garrison | Discovered new exit (range 8) 4831 | -8/Garrison | Core integrity fell below 20% 4916 | -8/Garrison | Build established: Bothacker-Skirmisher 4960 | -8/Garrison | Entered Factory 4960 | -7/Factory | Accompanied by 7 allies 4960 | -7/Factory | Evolved 2 slots: Utility x2 5696 | -7/Factory | Cargo convoy interrupted 5720 | -7/Factory | Identified exit to Garrison 5727 | -7/Factory | Lost 4 allies 5739 | -7/Factory | Entered Garrison 5767 | -7/Garrison | Triggered checkpoint 5879 | -7/Garrison | Garrison Relay disabled 5967 | -7/Garrison | Garrison Relay disabled 6114 | -7/Garrison | Phase Generator disabled 6300 | -7/Garrison | Build established: Bothacker-Mutant 6432 | -7/Garrison | Lost 3 parts (1p1n1u) 6447 | -7/Garrison | Triggered checkpoint 6558 | -7/Garrison | Discovered new exit (range 3) 6600 | -7/Garrison | Rescued a captive Derelict 6684 | -7/Garrison | Garrison Relay disabled 6761 | -7/Garrison | Expanded RIF knowledge: Zone Cloak 6859 | -7/Garrison | Triggered checkpoint 6877 | -7/Garrison | Triggered checkpoint 6906 | -7/Garrison | Build established: Bothacker-Skirmisher 6969 | -7/Garrison | Expanded RIF knowledge: Watcher Feeds 7021 | -7/Garrison | Lost 5 parts (1p1n1u2w) 7105 | -7/Garrison | Triggered checkpoint 7124 | -7/Garrison | Garrison Relay disabled 7249 | -7/Garrison | Discovered new exit (range 4) 7278 | -7/Garrison | Build established: Botlord-Skirmisher 7325 | -7/Garrison | Spotted B-75 Beast 7342 | -7/Garrison | Core integrity fell below 50% 7356 | -7/Garrison | Destroyed B-75 Beast 7561 | -7/Garrison | Triggered checkpoint 7725 | -7/Garrison | Entered Factory 7787 | -7/Factory | Build established: Botlord-Mutant 8091 | -7/Factory | Build established: Botlord-Skirmisher 8125 | -7/Factory | First assault squad dispatched 8237 | -7/Factory | Assimilated Heavy ARC 4a with formatsys_deep 8615 | -7/Factory | Discovered new exit (range 15) 8672 | -7/Factory | Lost 7 parts (1p3n1u2w) 8699 | -7/Factory | Identified exit to Garrison 8699 | -7/Factory | Entered Garrison 8793 | -7/Garrison | Triggered checkpoint 8815 | -7/Garrison | Garrison Relay disabled 8935 | -7/Garrison | Core integrity fell below 20% 8945 | -7/Garrison | Triggered checkpoint 8965 | -7/Garrison | Lost 3 allies 9008 | -7/Garrison | Lost 4 parts (3n1u) 9023 | -7/Garrison | Triggered checkpoint 9174 | -7/Garrison | Discovered new exit (range 11) 9203 | -7/Garrison | Entered Factory 9203 | -6/Factory | Evolved 2 slots: Propulsion x1, Utility x1 9319 | -6/Factory | Discovered new exit (range 6) 9729 | -6/Factory | Lost 3 parts (1p2w) 9970 | -6/Factory | Discovered new exit (range 9) 10000 | -6/Factory | Build established: Mutant 10062 | -6/Factory | Garrison activated, responded to threat 10105 | -6/Factory | Identified exit to Garrison 10105 | -6/Factory | Entered Garrison 10112 | -6/Garrison | Found embedded Infiltrators 10181 | -6/Garrison | Triggered checkpoint 10192 | -6/Garrison | Triggered checkpoint 10247 | -6/Garrison | Triggered checkpoint 10277 | -6/Garrison | Triggered checkpoint 10318 | -6/Garrison | Triggered checkpoint 10325 | -6/Garrison | Phase Generator disabled 10326 | -6/Garrison | Met a derelict Sapper fleeing the area 10377 | -6/Garrison | Triggered checkpoint 10409 | -6/Garrison | Expanded RIF knowledge: Patrol Navigation 10427 | -6/Garrison | Garrison Relay disabled 10490 | -6/Garrison | Discovered new exit (range 13) 10605 | -6/Garrison | Triggered checkpoint 10629 | -6/Garrison | Garrison Relay disabled 10681 | -6/Garrison | Discovered new exit (range 10) 10749 | -6/Garrison | Build established: Botlord-Mutant 10770 | -6/Garrison | Triggered checkpoint 10785 | -6/Garrison | Garrison Relay disabled 10802 | -6/Garrison | Rescued a captive Derelict 10803 | -6/Garrison | Rescued a captive Derelict 10853 | -6/Garrison | Discovered new exit (range 10) 10866 | -6/Garrison | Garrison Relay disabled 10975 | -6/Garrison | Entered Factory 10975 | -5/Factory | Accompanied by 5 allies 10975 | -5/Factory | Evolved 2 slots: Utility x2 11002 | -5/Factory | Identified exit to Garrison 11010 | -5/Factory | Entered Garrison 11010 | -5/Garrison | Accompanied by 5 allies 11044 | -5/Garrison | Triggered checkpoint 11075 | -5/Garrison | Expanded RIF knowledge: Robot Detection 11098 | -5/Garrison | Garrison Relay disabled 11272 | -5/Garrison | Triggered checkpoint 11279 | -5/Garrison | Triggered checkpoint 11290 | -5/Garrison | Triggered checkpoint 11298 | -5/Garrison | Triggered checkpoint 11398 | -5/Garrison | Triggered checkpoint 11496 | -5/Garrison | Discovered new exit (range 14) 11563 | -5/Garrison | Lost 3 parts (2u1w) 11694 | -5/Garrison | Garrison Relay disabled 11734 | -5/Garrison | Found embedded Infiltrators 11736 | -5/Garrison | Triggered checkpoint 11824 | -5/Garrison | Build established: Mutant 12107 | -5/Garrison | Garrison Relay disabled 12108 | -5/Garrison | Triggered checkpoint 12188 | -5/Garrison | Triggered checkpoint 12207 | -5/Garrison | Discovered new exit (range 14) 12699 | -5/Garrison | Discovered new exit (range 7) 12726 | -5/Garrison | Triggered checkpoint 12750 | -5/Garrison | Build established: Scavenger-Mutant 12828 | -5/Garrison | Lost 3 parts (1p1n1w) 12906 | -5/Garrison | Garrison Relay disabled 13167 | -5/Garrison | Entered Factory 13234 | -5/Factory | Discovered new exit (range 2) 13282 | -5/Factory | Build established: Tank 13353 | -5/Factory | Identified exit to Garrison 13467 | -5/Factory | First assault squad dispatched 13533 | -5/Factory | Identified exit to Garrison 13601 | -5/Factory | Entered Garrison 13646 | -5/Garrison | Spotted B-75 Beast 13653 | -5/Garrison | Destroyed B-75 Beast 13979 | -5/Garrison | Triggered checkpoint 14018 | -5/Garrison | Garrison Relay disabled 14226 | -5/Garrison | Core integrity fell below 50% 14339 | -5/Garrison | Core integrity fell below 20% 14576 | -5/Garrison | Spotted B-75 Beast 14793 | -5/Garrison | Assimilated Beast 6a with formatsys_high 14799 | -5/Garrison | Triggered checkpoint 14901 | -5/Garrison | Triggered checkpoint 14920 | -5/Garrison | Expanded RIF knowledge: Coupler Efficiency 14944 | -5/Garrison | Lost 3 allies 14977 | -5/Garrison | Garrison Relay disabled 14991 | -5/Garrison | Discovered new exit (range 20) 14991 | -5/Garrison | Discovered new exit (range 67) 14991 | -5/Garrison | Discovered new exit (range 52) 15008 | -5/Garrison | Build established: Botlord-Tank 15061 | -5/Garrison | Entered Factory 15061 | -4/Factory | Accompanied by 1 ally 15061 | -4/Factory | Evolved 2 slots: Propulsion x2 15274 | -4/Factory | Discovered new exit (range 18) 15277 | -4/Factory | Lost 3 allies 15311 | -4/Factory | First assault squad dispatched 15373 | -4/Factory | Lost 3 allies 15445 | -4/Factory | Build established: Botlord-Mutant 15615 | -4/Factory | Identified exit to Garrison 15656 | -4/Factory | Entered Garrison 15656 | -4/Garrison | Accompanied by 12 allies 15686 | -4/Garrison | Discovered new exit (range 64) 15686 | -4/Garrison | Discovered new exit (range 50) 15686 | -4/Garrison | Discovered new exit (range 43) 15686 | -4/Garrison | Discovered new exit (range 43) 15777 | -4/Garrison | Spotted B-86 Titan 15782 | -4/Garrison | Assimilated Titan 7a with formatsys_high 15788 | -4/Garrison | Triggered checkpoint 15790 | -4/Garrison | Triggered checkpoint 15863 | -4/Garrison | Triggered checkpoint 15962 | -4/Garrison | Triggered checkpoint 15972 | -4/Garrison | Garrison Relay disabled 16009 | -4/Garrison | Build established: Botlord-Tank 16212 | -4/Garrison | Triggered checkpoint 16214 | -4/Garrison | Lost 3 parts (1p1n1w) 16247 | -4/Garrison | Garrison Relay disabled 16540 | -4/Garrison | Triggered checkpoint 16544 | -4/Garrison | Assimilated Heavy ARC 7a with formatsys_deep 16628 | -4/Garrison | Triggered checkpoint 16652 | -4/Garrison | Garrison Relay disabled 17052 | -4/Garrison | Triggered checkpoint 17085 | -4/Garrison | Expanded RIF knowledge: Autooverride 17097 | -4/Garrison | Garrison Relay disabled 17117 | -4/Garrison | Spotted B-86 Titan 17450 | -4/Garrison | Triggered checkpoint 17475 | -4/Garrison | Garrison Relay disabled 17519 | -4/Garrison | Garrison Relay disabled 17888 | -4/Garrison | Triggered checkpoint 18407 | -4/Garrison | Rewired B-75 Beast 18409 | -4/Garrison | Rewired B-86 Titan 18414 | -4/Garrison | Allies destroyed B-86 Titan 18898 | -4/Garrison | Found embedded Infiltrators 19107 | -4/Garrison | Entered Factory 19107 | -4/Factory | Accompanied by 16 allies 19238 | -4/Factory | Spotted B-86 Titan 19265 | -4/Factory | Allies destroyed B-86 Titan 19267 | -4/Factory | Lost 9 allies 19275 | -4/Factory | Lost 3 parts (1p2w) 19357 | -4/Factory | First assault squad dispatched 19410 | -4/Factory | Discovered new exit (range 14) 19651 | -4/Factory | Identified exit to Upper Caves 19651 | -4/Factory | Identified exit to Extension 19651 | -4/Factory | Identified exit to Armory 19846 | -4/Factory | Core integrity fell below 50% 19851 | -4/Factory | System corruption reached 10% 19879 | -4/Factory | Lost 8 parts (1p3n3u1w) 19891 | -4/Factory | Identified exit to Garrison 19891 | -4/Factory | Entered Garrison 19912 | -4/Garrison | Core integrity fell below 20% 19996 | -4/Garrison | Destroyed by G-67 Veteran with Field Laser Last Messages --------------- 19981_ Field strength at 82. 19982_ Field strength at 76. 19982_ Slug penetrates Wall. 19983_ Field strength at 64. 19984_ Field strength at 58. 19984_ Penetrated by Slug. 19985_ Field strength at 39. 19986_ Field strength at 33. 19986_ Penetrated by Slug. 19987_ Field strength at 17. 19988_ Field strength at 11. 19988_ Penetrated by Slug. 19988_ Relay Coupler [Swarmer] destroyed. 19988_ Penetrated by Slug. 19988_ Stasis field depleted. 19994_ Connecting with Garrison Terminal... Feedback: System corruption (+1%). 19994_ ALERT: Suspicious activity at Terminal G003. Transmitting hostile system tracking data. Map ----- +----------------------------------------------------+ | ???????????????????????????## # #?????????? | | ???????????????????########## # # #?????????? | | ???????????????????# #?????????? | | ???????????????????# ######## #?????????? | | ???????????????????# #??????# # ##?????????? | | ???????????????????#+#??????## # #??????????? | | ??????????????????] !?????### # ###??????????? | | ????????????????#]] !!#?????# ###????????????? | | ???????????????Y# #Y????# #??????????????? | | ????????????????#]] !!#?????# #??????????????? | | ????????????????#]] !!#?????# #??????????????? | | ????????????????#########?????# #??????????????? | | ??????????????????????????????# #??????????????? | | ??????????????????????????????# #??????????????? | | ??????????????????????????????# ^#??????????????? | | ??????????????????????????????# #??????????????? | | ??????????????????????????????# #??????????????? | | ?????????????????????????###### #####??????????? | | ?????????????????????????# #???????? | | ?????????????????????????# #### #######????????? | | ?????????????????????????# #??# #??????????????? | | ?????????????????????????# ##?# #??????????????? | | ?????????????????????????# T#?# #??????????????? | | ??????????????C??????????# ##?# #??????????????? | | ?????????????????######### #### #??????????????? | | ?????????? @ #??????????????? | | ?????????? g #??????????????? | | ?????????? #??????????????? | | ??????????? g## ###############??????????????? | | ?????????????g??# ??????????????????????????????? | | ????s?????????? ????g???????????????????????????? | | ????s???????BB ??????g???????????????????????????? | | ????s???????BB???????g???????????????????????????? | | ????s????????????g???????????????????????????????? | | ???????????????????g?????????????????????????????? | | ???????????????????g?????????????????????????????? | | ??????????????????g??????g???????????????????????? | | ???????????????????????g?g????s?ss?ss????????????? | | ?????????????????????????????????????????????????? | | ?????????????????????????????????????????????????? | | ????????????Y?Y??????????????????????????????????? | | ?????????????????????????????????????????????????? | | ?????????????????????????????????????????????????? | | ?????????????????????????????????????????????????? | | ?????????????????????????????????????????????????? | | ?????????????????????????????????????????????????? | | ?????????????????????????????????????????????????? | | ?????????????????????????????????????????????????? | | ???????????????????????Y?????????????????????????? | | ?????????????????????????????????????????????????? | +----------------------------------------------------+ Best States ------------- Heat Dissipation 81 Coolant Potential 50 Energy Generation 25 Energy Capacity 350 Matter Stores 300 Matter Capacity 300 Sight Range 16 Terrain Scan Density 10 Armor Coverage 800 Evasion (%) 55 Recoil Reduction 6 Salvage Targeting 6 Offensive Hacking 10 Relay Coupler Types 7 Relay Coupler Value 178 Item Schematics ----------------- Hacking Suite | -8/Materials | Scanalyzed Robot Schematics ------------------ None Fabricated ------------ Nothing Repaired ---------- Nothing Studied --------- Wheel | -8/Materials | Hacked Alien Tech Used ----------------- None Achievements -------------- Deep Understanding Hack The Planet Hackathon Hackerman Immobile And Lovin' It Jackpot Let Me Out Of Here May I Have Another? Physics Hates This One Trick Resistances Are Futile Versatile You Will Be Upgraded Zeroed Repercussions Challenges ------------ None Game ------ Seed WeaponChromionRedirector Manual? 0 Play Time 05:42:05 Cumulative 347.6 hours Start 2025.10.25 @ 11:55:51 End 2025.11.20 @ 23:42:01 Sessions 13 Manual Loads 0 Difficulty Rogue Special Mode None Game No. 265 Rogue 265 Adventurer 0 Explorer 0 Win Type - Total 4 Types 3/0/1/0/0/0/0/0/0/0 Lore% 81 Gallery% 69 Achievement% 44 Wizard Run 0 Options --------- Layout 1 ASCII 0 Keyboard 0 Movement Mouse Keybinds 0 Fullscreen 1 Font 24/Smallcaps Map View 50x35 Zoom Use 0% Tactical HUD 1 Map Filters NONE Filters NONE Steam 1 RUN: 77620d11-337c-41fc-aa2c-fff20a8e8683